[Event "Icelandic Team-ch Kvika Leagu 2023-24"]
[Site "Reykjavik"]
[Date "2024.03.02"]
[Round "8"]
[White "Sulypa, Oleksandr"]
[Black "Nagy, Gabor"]
[Result "1/2-1/2"]
[ECO "C92"]
[WhiteElo "2457"]
[BlackElo "2436"]
[Annotator "RC"]
[PlyCount "28"]
[EventDate "2024.02.29"]
[EventType "team-tourn"]
[EventCountry "ISL"]
[SourceTitle "playchess.com"]
[Source "ChessBase"]
[SourceQuality "1"]
[TimeControl "40/5400+30:900+30"]

1. e4 {[%emt 0:00:02]} e5 {[%emt 0:00:56]} 2. Nf3 {[%emt 0:00:10]} Nc6 {[%emt 0:00:11]} 3. Bb5 {[%emt 0:00:09]} a6 {[%emt 0:00:28]} 4. Ba4 {[%emt 0:00:06]} Nf6 {[%emt 0:00:43]} 5. O-O {[%emt 0:00:13]} Be7 {[%emt 0:01:26]} 6. Re1 {[%emt 0:00:20]} b5 {[%emt 0:00:22]} 7. Bb3 {[%emt 0:00:07]} d6 {[%emt 0:00:29]} 8. c3 {[%emt 0:00:21]} O-O {[%emt 0:00:22]} 9. h3 {[%emt 0:00:06]} a5 {[%emt 0:00:23]} 10. d4 {[%emt 0:04:21]} Bd7 {[%emt 0:00:26]} 11. Nbd2 {[%emt 0:10:46]} a4 {[%emt 0:01:33]} 12. Bc2 {[%emt 0:00:10]} Re8 {[%emt 0:00:36]} 13. Nf1 {[%emt 0:01:41]} h6 {[%emt 0:02:15]} 14. Ne3 {[%emt 0:15:46]} Bf8 {[%emt 0:09:26]} 1/2-1/2

[Event "Icelandic Team-ch Kvika Leagu 2023-24"]
[Site "Reykjavik"]
[Date "2024.03.02"]
[Round "8"]
[White "Gunnarsson, Jon Viktor"]
[Black "Ragnarsson, Dagur"]
[Result "1-0"]
[ECO "D45"]
[WhiteElo "2442"]
[BlackElo "2337"]
[Annotator "RC"]
[PlyCount "59"]
[EventDate "2024.02.29"]
[EventType "team-tourn"]
[EventCountry "ISL"]
[SourceTitle "playchess.com"]
[Source "ChessBase"]
[SourceQuality "1"]
[TimeControl "40/5400+30:900+30"]

1. c4 {[%emt 0:04:43]} c6 {[%emt 0:00:44]} 2. Nf3 {[%emt 0:00:26]} d5 {[%emt 0:00:07]} 3. e3 {[%emt 0:00:06]} Nf6 {[%emt 0:00:05]} 4. Nc3 {[%emt 0:00:53]} e6 {[%emt 0:01:16]} 5. b3 {[%emt 0:01:13]} Bd6 {[%emt 0:00:26]} 6. Bb2 {[%emt 0:04:15]} O-O {[%emt 0:00:18]} 7. Be2 {[%emt 0:04:11]} Qe7 {[%emt 0:00:51]} 8. O-O {[%emt 0:03:40]} Nbd7 {[%emt 0:00:22]} 9. Qc2 {[%emt 0:03:44]} Re8 {[%emt 0:04:23]} 10. d4 {[%emt 0:10:55]} b6 {[%emt 0:00:13]} 11. e4 {[%emt 0:01:25]} dxe4 {[%emt 0:00:35]} 12. Nxe4 {[%emt 0:02:48]} Nxe4 {[%emt 0:00:07]} 13. Qxe4 {[%emt 0:00:06]} Bb7 {[%emt 0:00:06]} 14. Rad1 {[%emt 0:05:14]} f5 {[%emt 0:00:15]} 15. Qe3 {[%emt 0:01:37]} c5 {[%emt 0:01:00]} 16. dxc5 {[%emt 0:08:35]} Bxc5 {[%emt 0:01:11]} 17. Qf4 {[%emt 0:02:50]} Nf6 {[%emt 0:01:51]} 18. Ne5 {[%emt 0:04:58]} Rad8 {[%emt 0:00:36]} 19. Bf3 {[%emt 0:09:54]} Ne4 {[%emt 0:28:57]} 20. Bxe4 {[%emt 0:00:23]} Bxe4 {[%emt 0:00:11]} 21. h4 {[%emt 0:00:14]} Qb7 {[%emt 0:16:29]} 22. Kh2 {[%emt 0:03:04]} Qc7 {[%emt 0:02:07]} 23. f3 {[%emt 0:01:10]} Bb7 {[%emt 0:00:06]} 24. h5 {[%emt 0:02:06]} Be7 {[%emt 0:01:35]} 25. h6 {[%emt 0:03:13]} g5 {[%emt 0:05:00]} 26. Qg3 {[%emt 0:00:21]} Bf6 {[%emt 0:05:08]} 27. f4 {[%emt 0:04:53]} g4 {[%emt 0:00:05]} 28. Nxg4 {[%emt 0:01:00]} Bxb2 {[%emt 0:00:07]} 29. Nf6+ {[%emt 0:00:47]} Kf8 {[%emt 0:01:48]} 30. Qg8+ {[%emt 0:00:09]} 1-0

[Event "Icelandic Team-ch Kvika Leagu 2023-24"]
[Site "Reykjavik"]
[Date "2024.03.02"]
[Round "8"]
[White "Thorfinnsson, Bragi"]
[Black "Kulaots, Kaido"]
[Result "1/2-1/2"]
[ECO "D90"]
[WhiteElo "2397"]
[BlackElo "2534"]
[Annotator "RC"]
[PlyCount "82"]
[EventDate "2024.02.29"]
[EventType "team-tourn"]
[EventCountry "ISL"]
[SourceTitle "playchess.com"]
[Source "ChessBase"]
[SourceQuality "1"]
[TimeControl "40/5400+30:900+30"]

1. d4 {[%emt 0:03:09]} Nf6 {[%emt 0:00:27]} 2. Nf3 {[%emt 0:01:00]} g6 {[%emt 0:00:38]} 3. c4 {[%emt 0:06:28]} Bg7 {[%emt 0:00:38]} 4. Nc3 {[%emt 0:00:38]} d5 {[%emt 0:00:43]} 5. cxd5 {[%emt 0:09:00]} Nxd5 {[%emt 0:00:20]} 6. Bd2 {[%emt 0:00:53]} Nb6 {[%emt 0:03:30]} 7. Bf4 {[%emt 0:07:05]} O-O {[%emt 0:03:02]} 8. e3 {[%emt 0:02:02]} c5 {[%emt 0:17:54]} 9. dxc5 {[%emt 0:05:19]} N6d7 {[%emt 0:03:21]} 10. Bc4 {[%emt 0:07:47]} Nc6 {[%emt 0:18:12]} 11. O-O {[%emt 0:06:23]} Nxc5 {[%emt 0:00:37]} 12. Qe2 {[%emt 0:02:01]} Be6 {[%emt 0:05:56]} 13. Rfd1 {[%emt 0:08:17]} Qb6 {[%emt 0:02:11]} 14. Bxe6 {[%emt 0:11:42]} Nxe6 {[%emt 0:00:28]} 15. Nd5 {[%emt 0:00:48]} Qxb2 {[%emt 0:07:52]} 16. Qxb2 {[%emt 0:01:28]} Bxb2 {[%emt 0:00:08]} 17. Rab1 {[%emt 0:00:02]} Nxf4 {[%emt 0:08:35]} 18. exf4 {[%emt 0:05:19]} Ba3 {[%emt 0:01:07]} 19. Rxb7 {[%emt 0:00:04]} Rab8 {[%emt 0:00:41]} 20. Rdb1 {[%emt 0:01:49]} Rxb7 {[%emt 0:10:20]} 21. Rxb7 {[%emt 0:00:08]} Rd8 {[%emt 0:00:37]} 22. Ne3 {[%emt 0:00:32]} Rc8 {[%emt 0:06:27]} 23. Kf1 {[%emt 0:03:14]} Bd6 {[%emt 0:02:29]} 24. g3 {[%emt 0:00:50]} Rc7 {[%emt 0:03:34]} 25. Rxc7 {[%emt 0:03:11]} Bxc7 {[%emt 0:00:00]} 26. Ke2 {[%emt 0:00:10]} e6 {[%emt 0:00:00]} 27. Kd3 {[%emt 0:01:41]} Nb4+ {[%emt 0:00:00]} 28. Kc4 {[%emt 0:00:31]} Nxa2 {[%emt 0:00:00]} 29. Kb3 {[%emt 0:00:34]} Nc1+ {[%emt 0:00:01]} 30. Kc2 {[%emt 0:00:18]} Na2 {[%emt 0:00:16]} 31. Kb3 {[%emt 0:00:41]} Nc1+ {[%emt 0:00:05]} 32. Kc2 {[%emt 0:00:06]} Ne2 {[%emt 0:01:20]} 33. Kd3 {[%emt 0:01:57]} Nxf4+ {[%emt 0:00:16]} 34. gxf4 {[%emt 0:00:04]} Bxf4 {[%emt 0:00:04]} 35. Nc4 {[%emt 0:02:44]} Kg7 {[%emt 0:00:51]} 36. h3 {[%emt 0:00:40]} g5 {[%emt 0:02:28]} 37. Nd4 {[%emt 0:02:13]} h5 {[%emt 0:01:21]} 38. Nc6 {[%emt 0:01:18]} g4 {[%emt 0:01:15]} 39. hxg4 {[%emt 0:00:13]} hxg4 {[%emt 0:00:12]} 40. Nxa7 {[%emt 0:00:00]} g3 {[%emt 0:00:00]} 41. fxg3 {[%emt 0:01:07]} Bxg3 {[%emt 0:00:22]} 1/2-1/2

[Event "Icelandic Team-ch Kvika Leagu 2023-24"]
[Site "Reykjavik"]
[Date "2024.03.02"]
[Round "8"]
[White "Arngrimsson, Dagur"]
[Black "Thorhallsson, Throstur"]
[Result "1/2-1/2"]
[ECO "D27"]
[WhiteElo "2366"]
[BlackElo "2388"]
[Annotator "RC"]
[PlyCount "23"]
[EventDate "2024.02.29"]
[EventType "team-tourn"]
[EventCountry "ISL"]
[SourceTitle "playchess.com"]
[Source "ChessBase"]
[SourceQuality "1"]
[TimeControl "40/5400+30:900+30"]

1. d4 {[%emt 0:09:21]} d5 {[%emt 0:00:17]} 2. c4 {[%emt 0:01:53]} dxc4 {[%emt 0:00:40]} 3. Nf3 {[%emt 0:00:28]} Nf6 {[%emt 0:00:23]} 4. Nc3 {[%emt 0:01:50]} a6 {[%emt 0:06:25]} 5. e3 {[%emt 0:01:31]} e6 {[%emt 0:01:16]} 6. a4 {[%emt 0:02:55]} c5 {[%emt 0:01:25]} 7. Bxc4 {[%emt 0:00:39]} Nc6 {[%emt 0:01:12]} 8. O-O {[%emt 0:00:53]} Be7 {[%emt 0:02:10]} 9. dxc5 {[%emt 0:06:20]} Qxd1 {[%emt 0:08:10]} 10. Rxd1 {[%emt 0:00:07]} Bxc5 {[%emt 0:00:07]} 11. Bd2 {[%emt 0:01:42]} O-O {[%emt 0:07:41]} 12. Rac1 {[%emt 0:04:21]} 1/2-1/2

[Event "Icelandic Team-ch Kvika Leagu 2023-24"]
[Site "Reykjavik"]
[Date "2024.03.02"]
[Round "8"]
[White "Heimisson, Hilmir Freyr"]
[Black "Lomasov, Semyon"]
[Result "0-1"]
[ECO "A40"]
[WhiteElo "2355"]
[BlackElo "2565"]
[Annotator "RC"]
[PlyCount "72"]
[EventDate "2024.02.29"]
[EventType "team-tourn"]
[EventCountry "ISL"]
[SourceTitle "playchess.com"]
[Source "ChessBase"]
[SourceQuality "1"]
[TimeControl "40/5400+30:900+30"]

1. d4 {[%emt 0:04:37]} e6 {[%emt 0:01:34]} 2. c4 {[%emt 0:00:16]} Bb4+ {[%emt 0:00:19]} 3. Nc3 {[%emt 0:06:00]} c5 {[%emt 0:02:06]} 4. a3 {[%emt 0:03:07]} Bxc3+ {[%emt 0:02:18]} 5. bxc3 {[%emt 0:00:10]} Nc6 {[%emt 0:15:52]} 6. e3 {[%emt 0:04:47]} d6 {[%emt 0:02:05]} 7. Bd3 {[%emt 0:02:59]} e5 {[%emt 0:01:31]} 8. Ne2 {[%emt 0:01:47]} f5 {[%emt 0:03:32]} 9. O-O {[%emt 0:06:16]} Nf6 {[%emt 0:00:49]} 10. Ng3 {[%emt 0:01:45]} g6 {[%emt 0:04:56]} 11. Bd2 {[%emt 0:09:51]} Kd7 {[%emt 0:08:02]} 12. Be1 {[%emt 0:02:16]} Kc7 {[%emt 0:00:52]} 13. f3 {[%emt 0:03:55]} b6 {[%emt 0:01:22]} 14. Ne2 {[%emt 0:08:48]} Ba6 {[%emt 0:01:09]} 15. g4 {[%emt 0:06:28]} Qg8 {[%emt 0:07:14]} 16. gxf5 {[%emt 0:09:42]} Bxc4 {[%emt 0:02:37]} 17. Kh1 {[%emt 0:01:19]} gxf5 {[%emt 0:02:34]} 18. Rg1 {[%emt 0:03:19]} Qf7 {[%emt 0:10:11]} 19. dxc5 {[%emt 0:05:06]} bxc5 {[%emt 0:01:02]} 20. Bxc4 {[%emt 0:02:16]} Qxc4 {[%emt 0:01:18]} 21. Ng3 {[%emt 0:01:07]} Ne7 {[%emt 0:01:45]} 22. Qc2 {[%emt 0:06:04]} Rhg8 {[%emt 0:06:06]} 23. Rd1 {[%emt 0:03:52]} e4 {[%emt 0:05:45]} 24. fxe4 {[%emt 0:02:47]} fxe4 {[%emt 0:03:57]} 25. Qf2 {[%emt 0:02:07]} Raf8 {[%emt 0:01:39]} 26. Qf4 {[%emt 0:00:21]} Nfd5 {[%emt 0:01:12]} 27. Qh6 {[%emt 0:00:53]} Kc6 {[%emt 0:02:13]} 28. Qxh7 {[%emt 0:00:38]} Nxe3 {[%emt 0:01:03]} 29. Rd2 {[%emt 0:01:06]} N3f5 {[%emt 0:03:04]} 30. Nxf5 {[%emt 0:00:50]} Rxg1+ {[%emt 0:00:14]} 31. Kxg1 {[%emt 0:00:01]} Nxf5 {[%emt 0:00:12]} 32. Rb2 {[%emt 0:01:16]} Rf7 {[%emt 0:02:24]} 33. Qh8 {[%emt 0:00:22]} Rg7+ {[%emt 0:00:08]} 34. Bg3 {[%emt 0:00:14]} Qg8 {[%emt 0:00:10]} 35. Qxg8 {[%emt 0:00:39]} Rxg8 {[%emt 0:01:30]} 36. Kg2 {[%emt 0:00:48]} d5 {[%emt 0:01:31]} 0-1

[Event "Icelandic Team-ch Kvika Leagu 2023-24"]
[Site "Reykjavik"]
[Date "2024.03.02"]
[Round "8"]
[White "Johannesson, Ingvar Thor"]
[Black "Petersson, Baldur Teodor"]
[Result "1-0"]
[ECO "E95"]
[WhiteElo "2313"]
[BlackElo "2190"]
[Annotator "ChessBase"]
[PlyCount "99"]
[EventDate "2024.02.29"]
[EventType "team-tourn"]
[EventCountry "ISL"]
[SourceTitle "playchess.com"]
[Source "ChessBase"]
[SourceQuality "1"]
[TimeControl "40/5400+30:900+30"]

1. c4 {[%emt 0:00:13]} Nf6 {[%emt 0:00:23]} 2. d4 {[%emt 0:05:20]} g6 {[%emt 0:00:49]} 3. Nc3 {[%emt 0:00:08]} Bg7 {[%emt 0:00:06]} 4. e4 {[%emt 0:00:08]} d6 {[%emt 0:00:12]} 5. Nf3 {[%emt 0:00:06]} O-O {[%emt 0:00:08]} 6. Be2 {[%emt 0:00:16]} e5 {[%emt 0:01:32]} 7. O-O {[%emt 0:01:56]} Nbd7 {[%emt 0:00:09]} 8. Re1 {[%emt 0:00:52]} Re8 {[%emt 0:02:05]} 9. Bf1 {[%emt 0:07:48]} exd4 {[%emt 0:03:18]} 10. Nxd4 {[%emt 0:01:37]} Nc5 {[%emt 0:01:08]} 11. f3 {[%emt 0:00:40]} c6 {[%emt 0:01:33]} 12. Be3 {[%emt 0:09:24]} Qc7 {[%emt 0:22:48]} 13. Qd2 {[%emt 0:04:31]} Ne6 {[%emt 0:18:27]} 14. Nc2 {[%emt 0:09:06]} Nd7 {[%emt 0:05:38]} 15. Rad1 {[%emt 0:01:32]} Bf8 {[%emt 0:00:07]} 16. Kh1 {[%emt 0:06:42]} Ng7 {[%emt 0:05:14]} 17. Bh6 {[%emt 0:06:08]} f6 {[%emt 0:04:00]} 18. Nd4 {[%emt 0:07:43]} Ne5 {[%emt 0:02:58]} 19. Be3 {[%emt 0:04:48]} Nf7 {[%emt 0:04:53]} 20. b3 {[%emt 0:06:44]} Bd7 {[%emt 0:00:32]} 21. Bd3 {[%emt 0:09:22]} a6 {[%emt 0:04:25]} 22. Rc1 {[%emt 0:01:33]} Qd8 {[%emt 0:02:12]} 23. a4 {[%emt 0:01:27]} a5 {[%emt 0:00:15]} 24. Rcd1 {[%emt 0:00:34]} Qc8 {[%emt 0:01:59]} 25. Bc2 {[%emt 0:01:44]} Ne5 {[%emt 0:00:56]} 26. f4 {[%emt 0:01:45]} Ng4 {[%emt 0:01:24]} 27. Bg1 {[%emt 0:00:02]} f5 {[%emt 0:00:37]} 28. Nf3 {[%emt 0:07:50]} fxe4 {[%emt 0:03:05]} 29. Nxe4 {[%emt 0:02:30]} Bf5 {[%emt 0:00:43]} 30. h3 {[%emt 0:01:04]} Bxe4 {[%emt 0:00:38]} 31. Bxe4 {[%emt 0:00:02]} Nf6 {[%emt 0:08:01]} 32. Bd3 {[%emt 0:00:48]} c5 {[%emt 0:04:13]} 33. Bf2 {[%emt 0:01:30]} Qc6 {[%emt 0:01:50]} 34. Ng5 {[%emt 0:00:47]} Nf5 {[%emt 0:00:35]} 35. Be2 {[%emt 0:00:41]} h6 {[%emt 0:00:14]} 36. Bf3 {[%emt 0:00:16]} Qd7 {[%emt 0:00:44]} 37. Ne4 {[%emt 0:00:37]} Bg7 {[%emt 0:00:32]} 38. Nc3 {[%emt 0:00:27]} Rxe1+ {[%emt 0:00:30]} 39. Rxe1 {[%emt 0:00:06]} Re8 {[%emt 0:00:32]} 40. Rd1 {[%emt 0:00:00]} Kh7 {[%emt 0:00:00]} 41. Nb5 {[%emt 0:06:45]} Ne4 {[%emt 0:01:51]} 42. Bxe4 {[%emt 0:02:38]} Rxe4 {[%emt 0:00:03]} 43. Nxd6 {[%emt 0:01:39]} Nxd6 {[%emt 0:11:25]} 44. Qxd6 {[%emt 0:00:08]} Qf7 {[%emt 0:02:05]} 45. Bxc5 {[%emt 0:05:14]} Rxf4 {[%emt 0:01:11]} 46. Kg1 {[%emt 0:00:02]} Qf5 {[%emt 0:01:31]} 47. Qc7 {[%emt 0:00:17]} Qf6 {[%emt 0:00:55]} 48. Kh2 {[%emt 0:01:27]} Rf5 {[%emt 0:00:25]} 49. Rd7 {[%emt 0:01:43]} Rf1 {[%emt 0:00:36]} 50. Bd4 {[%emt 0:00:26]} 1-0

[Event "Icelandic Team-ch Kvika Leagu 2023-24"]
[Site "Reykjavik"]
[Date "2024.03.02"]
[Round "8"]
[White "Bjornsson, Sigurbjorn"]
[Black "Kjartansson, David"]
[Result "1-0"]
[ECO "C41"]
[WhiteElo "2305"]
[BlackElo "2287"]
[Annotator "RC"]
[PlyCount "67"]
[EventDate "2024.02.29"]
[EventType "team-tourn"]
[EventCountry "ISL"]
[SourceTitle "playchess.com"]
[Source "ChessBase"]
[SourceQuality "1"]
[TimeControl "40/5400+30:900+30"]

1. e4 {[%emt 0:00:06]} d6 {[%emt 0:11:55]} 2. d4 {[%emt 0:00:09]} Nf6 {[%emt 0:00:05]} 3. Nc3 {[%emt 0:00:05]} e5 {[%emt 0:00:06]} 4. Nf3 {[%emt 0:00:07]} Nbd7 {[%emt 0:00:08]} 5. Bc4 {[%emt 0:00:09]} Be7 {[%emt 0:00:51]} 6. O-O {[%emt 0:00:13]} c6 {[%emt 0:00:54]} 7. a4 {[%emt 0:00:22]} h6 {[%emt 0:00:29]} 8. Re1 {[%emt 0:01:52]} Qc7 {[%emt 0:00:07]} 9. h3 {[%emt 0:00:46]} Nf8 {[%emt 0:00:30]} 10. Nh4 {[%emt 0:03:14]} g6 {[%emt 0:17:56]} 11. a5 {[%emt 0:03:48]} N6d7 {[%emt 0:18:07]} 12. Nf3 {[%emt 0:04:23]} g5 {[%emt 0:00:08]} 13. Ne2 {[%emt 0:09:54]} Ng6 {[%emt 0:04:09]} 14. Ng3 {[%emt 0:01:12]} Nf4 {[%emt 0:00:22]} 15. Nf5 {[%emt 0:02:49]} Nf6 {[%emt 0:00:16]} 16. Bxf4 {[%emt 0:09:35]} gxf4 {[%emt 0:02:10]} 17. N3h4 {[%emt 0:01:12]} Bf8 {[%emt 0:01:18]} 18. Qd3 {[%emt 0:02:22]} Be6 {[%emt 0:08:58]} 19. d5 {[%emt 0:06:22]} cxd5 {[%emt 0:03:27]} 20. exd5 {[%emt 0:01:51]} Bd7 {[%emt 0:01:09]} 21. a6 {[%emt 0:01:43]} b6 {[%emt 0:01:01]} 22. Ra3 {[%emt 0:00:51]} Qc5 {[%emt 0:04:58]} 23. Rc3 {[%emt 0:15:17]} Qa5 {[%emt 0:04:20]} 24. Qd4 {[%emt 0:09:30]} Bxf5 {[%emt 0:13:25]} 25. Rxe5+ {[%emt 0:06:46]} dxe5 {[%emt 0:00:24]} 26. Qxe5+ {[%emt 0:00:09]} Be6 {[%emt 0:01:44]} 27. Qxf6 {[%emt 0:00:27]} Qa1+ {[%emt 0:02:36]} 28. Kh2 {[%emt 0:00:15]} Bd7 {[%emt 0:01:01]} 29. Qe5+ {[%emt 0:01:50]} Kd8 {[%emt 0:00:27]} 30. Qxh8 {[%emt 0:00:17]} Kc7 {[%emt 0:00:33]} 31. Bb5+ {[%emt 0:02:46]} Bc5 {[%emt 0:00:32]} 32. Qxa8 {[%emt 0:00:49]} Bxb5 {[%emt 0:00:12]} 33. Rxc5+ {[%emt 0:00:12]} bxc5 {[%emt 0:00:22]} 34. Qb7+ {[%emt 0:00:04]} 1-0

[Event "Icelandic Team-ch Kvika Leagu 2023-24"]
[Site "Reykjavik"]
[Date "2024.03.02"]
[Round "8"]
[White "O`Donnell, Conor"]
[Black "Bjornsson, Tomas"]
[Result "1-0"]
[ECO "E08"]
[WhiteElo "2284"]
[BlackElo "2165"]
[Annotator "RC"]
[PlyCount "80"]
[EventDate "2024.02.29"]
[EventType "team-tourn"]
[EventCountry "ISL"]
[SourceTitle "playchess.com"]
[Source "ChessBase"]
[SourceQuality "1"]
[TimeControl "40/5400+30:900+30"]

1. c4 {[%emt 0:03:06]} Nf6 {[%emt 0:03:27]} 2. Nf3 {[%emt 0:00:00]} e6 {[%emt 0:01:43]} 3. g3 {[%emt 0:00:00]} d5 {[%emt 0:00:57]} 4. Bg2 {[%emt 0:00:07]} Be7 {[%emt 0:00:27]} 5. O-O {[%emt 0:00:12]} O-O {[%emt 0:00:05]} 6. d4 {[%emt 0:00:14]} Nbd7 {[%emt 0:04:10]} 7. Qc2 {[%emt 0:02:07]} a6 {[%emt 0:03:45]} 8. b3 {[%emt 0:10:23]} c5 {[%emt 0:10:33]} 9. dxc5 {[%emt 0:07:08]} Nxc5 {[%emt 0:05:46]} 10. Rd1 {[%emt 0:03:55]} Qb6 {[%emt 0:07:14]} 11. Be3 {[%emt 0:07:53]} Qc7 {[%emt 0:05:37]} 12. cxd5 {[%emt 0:18:52]} Nxd5 {[%emt 0:06:21]} 13. Bd4 {[%emt 0:15:14]} a5 {[%emt 0:11:38]} 14. Nc3 {[%emt 0:04:43]} Nd7 {[%emt 0:27:29]} 15. Qb2 {[%emt 0:05:20]} Bf6 {[%emt 0:01:49]} 16. Nxd5 {[%emt 0:01:59]} exd5 {[%emt 0:00:04]} 17. Rac1 {[%emt 0:01:19]} Qd6 {[%emt 0:00:06]} 18. Rc2 {[%emt 0:04:08]} Bxd4 {[%emt 0:00:50]} 19. Nxd4 {[%emt 0:01:08]} Nf6 {[%emt 0:00:12]} 20. Nb5 {[%emt 0:01:20]} Qb4 {[%emt 0:01:01]} 21. Nc7 {[%emt 0:00:47]} Rb8 {[%emt 0:00:07]} 22. Nxd5 {[%emt 0:01:47]} Nxd5 {[%emt 0:00:06]} 23. Bxd5 {[%emt 0:00:12]} Bf5 {[%emt 0:00:24]} 24. Rcd2 {[%emt 0:01:22]} b6 {[%emt 0:00:22]} 25. Qe5 {[%emt 0:01:16]} Bg6 {[%emt 0:00:14]} 26. h4 {[%emt 0:01:24]} h6 {[%emt 0:05:18]} 27. h5 {[%emt 0:00:59]} Rbe8 {[%emt 0:00:21]} 28. Qxe8 {[%emt 0:01:24]} Rxe8 {[%emt 0:00:15]} 29. hxg6 {[%emt 0:00:04]} Rb8 {[%emt 0:02:44]} 30. Bc4 {[%emt 0:02:17]} Kf8 {[%emt 0:01:32]} 31. gxf7 {[%emt 0:00:04]} Qe7 {[%emt 0:00:34]} 32. a4 {[%emt 0:02:01]} h5 {[%emt 0:00:18]} 33. Rd7 {[%emt 0:00:49]} Qf6 {[%emt 0:00:57]} 34. R1d4 {[%emt 0:00:40]} g6 {[%emt 0:00:32]} 35. R7d6 {[%emt 0:01:17]} Qg5 {[%emt 0:00:22]} 36. Kg2 {[%emt 0:00:55]} Kg7 {[%emt 0:00:23]} 37. R6d5 {[%emt 0:01:08]} Qf6 {[%emt 0:00:36]} 38. Rd7 {[%emt 0:00:45]} Rf8 {[%emt 0:00:39]} 39. R4d6 {[%emt 0:00:35]} Qe5 {[%emt 0:00:23]} 40. Re6 {[%emt 0:00:00]} Qc5 {[%emt 0:01:08]} 1-0

[Event "Icelandic Team-ch Kvika Leagu 2023-24"]
[Site "Reykjavik"]
[Date "2024.03.02"]
[Round "8"]
[White "Gislason, Gudmundur"]
[Black "Gunnarsson, Arnar"]
[Result "1/2-1/2"]
[ECO "A14"]
[WhiteElo "2266"]
[BlackElo "2410"]
[Annotator "RC"]
[PlyCount "110"]
[EventDate "2024.02.29"]
[EventType "team-tourn"]
[EventCountry "ISL"]
[SourceTitle "playchess.com"]
[Source "ChessBase"]
[SourceQuality "1"]
[TimeControl "40/5400+30:900+30"]

1. Nf3 {[%emt 0:01:48]} Nf6 {[%emt 0:01:32]} 2. c4 {[%emt 0:00:09]} e6 {[%emt 0:00:43]} 3. g3 {[%emt 0:00:07]} d5 {[%emt 0:00:30]} 4. Bg2 {[%emt 0:00:08]} Be7 {[%emt 0:00:35]} 5. O-O {[%emt 0:00:07]} O-O {[%emt 0:00:11]} 6. b3 {[%emt 0:02:15]} b6 {[%emt 0:02:31]} 7. Bb2 {[%emt 0:03:35]} Bb7 {[%emt 0:00:22]} 8. d3 {[%emt 0:02:47]} c5 {[%emt 0:07:39]} 9. Ne5 {[%emt 0:02:16]} Nc6 {[%emt 0:01:16]} 10. Nxc6 {[%emt 0:05:52]} Bxc6 {[%emt 0:05:04]} 11. Nc3 {[%emt 0:00:07]} Qd7 {[%emt 0:01:43]} 12. e4 {[%emt 0:08:27]} Qb7 {[%emt 0:28:25]} 13. cxd5 {[%emt 0:04:29]} exd5 {[%emt 0:00:05]} 14. e5 {[%emt 0:00:10]} Nd7 {[%emt 0:00:03]} 15. d4 {[%emt 0:01:47]} cxd4 {[%emt 0:01:21]} 16. Qxd4 {[%emt 0:00:48]} Bc5 {[%emt 0:01:53]} 17. Qf4 {[%emt 0:02:29]} Rae8 {[%emt 0:13:23]} 18. Ne2 {[%emt 0:17:52]} f6 {[%emt 0:02:00]} 19. exf6 {[%emt 0:00:40]} Nxf6 {[%emt 0:07:35]} 20. Nd4 {[%emt 0:00:08]} Ne4 {[%emt 0:00:07]} 21. Qc1 {[%emt 0:01:49]} Bd7 {[%emt 0:01:11]} 22. a3 {[%emt 0:09:06]} a5 {[%emt 0:00:04]} 23. Qd1 {[%emt 0:08:54]} Rf6 {[%emt 0:07:17]} 24. Nf3 {[%emt 0:11:20]} Rf7 {[%emt 0:00:55]} 25. b4 {[%emt 0:02:20]} axb4 {[%emt 0:00:30]} 26. axb4 {[%emt 0:00:08]} Bd6 {[%emt 0:02:54]} 27. Qd3 {[%emt 0:06:35]} Bg4 {[%emt 0:02:57]} 28. Nd4 {[%emt 0:01:21]} Bd7 {[%emt 0:03:52]} 29. Nb5 {[%emt 0:01:21]} Bxb4 {[%emt 0:00:48]} 30. Ra7 {[%emt 0:01:47]} Bxb5 {[%emt 0:03:13]} 31. Qxb5 {[%emt 0:00:11]} Qxa7 {[%emt 0:00:25]} 32. Qxe8+ {[%emt 0:00:28]} Rf8 {[%emt 0:01:21]} 33. Qe6+ {[%emt 0:01:09]} Qf7 {[%emt 0:00:28]} 34. Qc6 {[%emt 0:02:29]} Bc5 {[%emt 0:03:18]} 35. Bxe4 {[%emt 0:00:10]} dxe4 {[%emt 0:00:05]} 36. Qxe4 {[%emt 0:00:20]} Re8 {[%emt 0:00:57]} 37. Qc6 {[%emt 0:00:55]} h5 {[%emt 0:00:20]} 38. Bc1 {[%emt 0:01:57]} h4 {[%emt 0:01:23]} 39. Bf4 {[%emt 0:00:21]} Re6 {[%emt 0:00:31]} 40. Qa8+ {[%emt 0:00:00]} Kh7 {[%emt 0:00:00]} 41. Qd8 {[%emt 0:01:43]} Be7 {[%emt 0:05:33]} 42. Qd3+ {[%emt 0:00:21]} Qg6 {[%emt 0:00:28]} 43. Qxg6+ {[%emt 0:00:21]} Kxg6 {[%emt 0:00:04]} 44. Kg2 {[%emt 0:00:21]} Kf5 {[%emt 0:03:38]} 45. Be3 {[%emt 0:00:33]} hxg3 {[%emt 0:01:36]} 46. hxg3 {[%emt 0:00:10]} Bc5 {[%emt 0:02:05]} 47. Bxc5 {[%emt 0:01:03]} bxc5 {[%emt 0:00:03]} 48. Rc1 {[%emt 0:00:00]} Rc6 {[%emt 0:00:00]} 49. Rc4 {[%emt 0:00:25]} Ke5 {[%emt 0:00:00]} 50. Kf3 {[%emt 0:01:06]} Kd5 {[%emt 0:00:00]} 51. Rg4 {[%emt 0:00:14]} Rc7 {[%emt 0:00:45]} 52. Ke3 {[%emt 0:01:00]} Rf7 {[%emt 0:03:10]} 53. Kd3 {[%emt 0:03:00]} Rf3+ {[%emt 0:00:34]} 54. Ke2 {[%emt 0:00:18]} Rf7 {[%emt 0:00:11]} 55. Kd3 {[%emt 0:00:09]} Rf3+ {[%emt 0:03:47]} 1/2-1/2

[Event "Icelandic Team-ch Kvika Leagu 2023-24"]
[Site "Reykjavik"]
[Date "2024.03.02"]
[Round "8"]
[White "Hansen, Soren Bech"]
[Black "Thorsteinsson, Thorsteinn"]
[Result "1/2-1/2"]
[ECO "B90"]
[WhiteElo "2213"]
[BlackElo "2193"]
[Annotator "RC"]
[PlyCount "43"]
[EventDate "2024.02.29"]
[EventType "team-tourn"]
[EventCountry "ISL"]
[SourceTitle "playchess.com"]
[Source "ChessBase"]
[SourceQuality "1"]
[TimeControl "40/5400+30:900+30"]

1. e4 {[%emt 0:00:02]} c5 {[%emt 0:00:39]} 2. Nf3 {[%emt 0:00:11]} d6 {[%emt 0:00:27]} 3. d4 {[%emt 0:01:02]} cxd4 {[%emt 0:00:06]} 4. Nxd4 {[%emt 0:00:05]} Nf6 {[%emt 0:00:08]} 5. Nc3 {[%emt 0:00:07]} g6 {[%emt 0:00:04]} 6. Bc4 {[%emt 0:00:44]} Bg7 {[%emt 0:00:08]} 7. Bb3 {[%emt 0:00:09]} O-O {[%emt 0:00:16]} 8. O-O {[%emt 0:00:04]} a6 {[%emt 0:02:21]} 9. Re1 {[%emt 0:01:07]} b5 {[%emt 0:03:41]} 10. a4 {[%emt 0:05:48]} bxa4 {[%emt 0:04:31]} 11. Bxa4 {[%emt 0:06:06]} Qb6 {[%emt 0:05:54]} 12. h3 {[%emt 0:07:39]} Bd7 {[%emt 0:07:46]} 13. Bb3 {[%emt 0:04:01]} e6 {[%emt 0:03:32]} 14. Be3 {[%emt 0:05:41]} Qb7 {[%emt 0:03:05]} 15. f3 {[%emt 0:07:05]} Rc8 {[%emt 0:04:03]} 16. Nde2 {[%emt 0:02:25]} Ne8 {[%emt 0:01:07]} 17. Qd2 {[%emt 0:02:57]} Bb5 {[%emt 0:09:33]} 18. Bd4 {[%emt 0:03:23]} Bc4 {[%emt 0:03:02]} 19. Bxg7 {[%emt 0:02:14]} Kxg7 {[%emt 0:03:49]} 20. Ra3 {[%emt 0:09:58]} Bxb3 {[%emt 0:02:59]} 21. Rxb3 {[%emt 0:00:11]} Qa7+ {[%emt 0:00:09]} 22. Qd4+ {[%emt 0:03:23]} 1/2-1/2